bitfinex-derivatives/quotes_ETHF0:USTF0_20250110
["timestamp","ask_amount","ask_price","bid_price","bid_amount"]
[1736485354256,0.30751,3252.1,3251.9,40.8]
[1736485354553,3.2078,3252.6,3251.9,40.8]
[1736485354759,0.30749,3252.4,3252.2,3.2078]
[1736485354947,0.30749,3252.4,3252.3,0.4775]
[1736485355149,0.30744,3252.9,3252.3,2.39126452]
[1736485355346,0.30743,3253.0,3252.6,3.51526]
[1736485355549,1.91376452,3253.6,3252.7,0.4323]
[1736485355757,2.38006452,3253.6,3252.7,0.73975]
[1736485355958,0.30743,3253.0,3252.7,0.4323]
[1736485356356,0.30742,3253.1,3252.7,0.4323]
[1736485356854,0.30742,3253.1,3252.7,0.73975]
[1736485357759,0.30743,3253.0,3252.7,0.73975]
[1736485357962,0.30742,3253.1,3252.7,0.73975]
[1736485358454,1.91376452,3253.2,3252.7,0.4323]
[1736485358759,0.30744,3252.9,3252.7,0.4323]
[1736485360565,1.91376452,3253.2,3252.7,0.4323]
[1736485360863,0.30745,3252.8,3252.7,0.4323]
[1736485361053,0.30743,3253.0,3252.7,0.4323]
[1736485362460,0.30742,3253.1,3252.7,0.4323]
[1736485362661,0.30743,3253.0,3252.7,0.4323]
[1736485362959,1.91376452,3253.2,3252.7,0.4323]
[1736485363164,1.91376452,3252.9,3252.7,0.4323]
[1736485364763,0.30742,3253.1,3252.7,0.73975]
[1736485364963,1.91376452,3253.2,3252.8,0.30744]
[1736485365160,2.22117452,3253.2,3252.8,0.30744]
[1736485365562,2.22117452,3253.2,3252.9,0.4508]
[1736485366062,2.22117452,3253.2,3252.9,0.75823]
[1736485366063,1.91376452,3253.2,3252.9,0.75823]
[1736485366261,1.91376452,3253.2,3253.0,0.4325]
[1736485367157,3.2078,3253.4,3253.1,0.30741]
[1736485367554,3.2078,3253.4,3253.1,0.30742]
[1736485367962,3.2078,3253.4,3253.0,3.6403]
[1736485368163,3.2078,3253.4,3253.2,0.3074]
[1736485368459,3.2078,3253.4,3253.3,0.4549]
[1736485368767,3.2078,3253.4,3253.3,0.7623]
[1736485368962,3.2078,3253.4,3253.3,0.4549]
[1736485370358,3.2078,3253.4,3253.3,0.7623]
[1736485371573,0.78494,3254.0,3253.7,0.30735]
[1736485371767,0.78494,3254.0,3253.8,0.30734]
[1736485371768,0.4776,3254.0,3253.8,0.30734]
[1736485371962,3.2078,3254.2,3254.0,0.30733]
[1736485372361,1.91376452,3254.4,3253.9,0.4605]
[1736485372565,0.30731,3254.3,3254.0,0.30733]
[1736485372765,1.91376452,3254.4,3253.9,0.4605]
[1736485372965,2.22106452,3254.4,3254.0,0.30733]
[1736485373160,1.91376452,3254.4,3253.9,0.4605]
[1736485373468,0.3073,3254.3,3253.9,0.76784]
[1736485374467,0.3073,3254.3,3253.9,0.4605]
[1736485374671,2.22105452,3254.4,3254.1,0.30732]
[1736485375172,1.91376452,3254.4,3254.1,0.30732]
[1736485375674,0.3073,3254.3,3254.0,0.30733]
[1736485375870,0.30732,3254.2,3253.9,3.97564]
[1736485376566,0.30731,3254.3,3253.9,3.97564]
[1736485376773,0.30731,3254.3,3254.0,0.30733]
[1736485377270,0.30731,3254.3,3253.9,3.6683]
[1736485377470,0.30731,3254.3,3253.9,3.97564]
[1736485377871,0.30731,3254.3,3254.0,0.30733]
[1736485379665,0.30732,3254.2,3253.9,3.97564]
[1736485379867,0.4586,3254.5,3253.9,3.6683]
[1736485380167,0.30733,3254.0,3253.9,3.2078]
[1736485380362,2.22109452,3254.1,3253.8,0.30735]
[1736485380565,0.4795,3254.0,3253.9,0.30734]
[1736485381271,0.4795,3254.0,3253.6,0.9471]
[1736485381460,0.4795,3254.0,3253.8,0.30735]
[1736485381665,0.4795,3254.0,3253.6,0.9471]
[1736485381865,0.4795,3254.0,3253.8,0.30734]
[1736485382070,0.4795,3254.0,3253.6,0.9471]
[1736485382273,0.4795,3254.0,3253.9,0.30734]
[1736485382473,1.91376452,3254.4,3253.6,0.9471]
[1736485382669,0.4662,3254.3,3253.6,0.9471]
[1736485382974,0.77351,3254.3,3253.9,0.30733]
[1736485383471,0.30731,3254.2,3253.9,3.51513]
[1736485385869,0.77351,3254.3,3254.0,0.30733]
[1736485386070,0.77351,3254.3,3254.0,0.77623]
[1736485386773,0.4662,3254.3,3254.2,0.30731]
[1736485387472,0.4516,3254.6,3254.1,0.4724]
[1736485387671,0.8848,3254.6,3254.2,0.4677]
[1736485387870,1.19208,3254.6,3254.3,3.5151]
[1736485388072,0.30729,3254.5,3254.3,3.2078]
[1736485388572,0.30729,3254.4,3254.3,3.2078]
[1736485390474,0.8848,3254.6,3254.4,0.30728]
[1736485390676,0.8848,3254.6,3254.5,0.30728]
[1736485390677,0.4332,3254.6,3254.5,0.30728]
[1736485391177,0.4332,3254.6,3254.5,41.10728]
[1736485392581,0.4332,3254.6,3254.5,40.8]
[1736485394578,0.4332,3254.6,3254.5,41.10728]
[1736485395080,0.4332,3254.6,3254.5,0.30728]
[1736485397484,3.2078,3254.8,3254.6,0.30727]
[1736485398381,3.2078,3254.8,3254.5,0.30728]
[1736485398582,3.2078,3254.8,3254.6,0.30727]
[1736485399187,3.2078,3254.8,3254.4,41.7253]
[1736485399378,3.2078,3254.8,3254.6,0.30727]
[1736485399577,3.2078,3254.8,3254.7,0.4609]
[1736485399894,0.4333,3254.9,3254.8,0.30726]
[1736485401179,3.2078,3255.2,3254.7,0.4609]
[1736485401373,3.98162,3255.2,3254.9,0.30724]
[1736485401780,0.30723,3255.1,3254.9,0.30724]
[1736485402083,0.30723,3255.1,3254.8,0.30725]
[1736485406291,4.44342,3255.2,3254.9,0.30724]
[1736485406482,0.30723,3255.1,3254.8,0.30725]
[1736485407389,0.30726,3254.8,3254.7,3.2078]
[1736485409493,0.30729,3254.5,3254.3,0.3073]
[1736485409890,0.30728,3254.6,3254.3,0.3073]
[1736485410089,0.30729,3254.5,3254.3,0.3073]
[1736485410482,1.21677,3254.7,3254.1,4.0859]
[1736485410689,0.75717,3254.7,3254.5,0.30728]
[1736485411082,0.4499,3254.7,3254.1,4.0859]
[1736485411390,0.4499,3254.7,3254.5,0.30728]
[1736485411787,0.4499,3254.7,3254.1,4.0859]
[1736485411984,2.911,3255.0,3254.6,0.30728]
[1736485412189,3.371,3255.0,3254.8,0.30725]
[1736485412394,3.67824,3255.0,3254.7,1.69896]
[1736485413189,3.67824,3255.0,3254.7,42.49896]
[1736485413390,0.30725,3254.9,3254.7,1.3917]
[1736485414302,3.371,3255.0,3254.7,1.3917]
[1736485414594,3.371,3255.0,3254.6,0.30727]
[1736485414595,0.30725,3254.9,3254.6,0.30727]
[1736485416006,2.68100452,3255.0,3254.7,0.30726]
[1736485417500,2.68100452,3255.0,3254.4,3.2078]
[1736485417501,5.42877452,3255.3,3255.0,0.30723]
[1736485418297,1.91376452,3255.3,3254.4,3.2078]
[1736485418496,0.30722,3255.2,3254.4,3.2078]
[1736485418702,0.30722,3255.2,3254.9,0.30725]
[1736485419405,2.22097452,3255.3,3255.0,0.30723]
[1736485419897,2.22097452,3255.3,3255.1,0.9267]
[1736485420102,1.22649,3255.5,3255.2,0.30721]
[1736485420296,1.22649,3255.5,3255.2,0.75721]
[1736485421100,0.4506,3255.5,3255.3,0.3072]
[1736485421600,0.4506,3255.5,3255.2,0.45]
[1736485421601,0.4506,3255.5,3255.4,0.3072]
[1736485422190,2.22092452,3255.9,3255.3,0.30721]
[1736485422396,0.4442,3255.8,3255.6,0.30718]
[1736485422594,0.4442,3255.8,3255.7,0.30717]
[1736485422899,0.30715,3256.0,3255.7,0.30717]
[1736485423107,0.30715,3256.0,3255.8,0.9041]
[1736485423400,3.95914,3256.1,3255.8,1.3766]
[1736485424295,3.652,3256.1,3255.8,1.3766]
[1736485424500,0.30714,3256.0,3255.8,1.3766]
[1736485425195,3.652,3256.1,3255.8,1.3766]
[1736485425392,3.95914,3256.1,3255.8,1.3766]
[1736485425591,3.652,3256.1,3255.8,1.3766]
[1736485425806,0.30715,3256.0,3255.8,1.3766]
[1736485426803,3.95914,3256.1,3255.8,1.3766]
[1736485427003,3.652,3256.1,3255.8,1.3766]
[1736485427609,3.2078,3256.1,3256.0,0.30714]
[1736485428305,0.8774,3256.4,3256.0,0.30714]
[1736485428503,1.18451,3256.4,3256.0,0.30714]
[1736485430107,0.8774,3256.4,3256.1,0.30713]
[1736485432406,0.30712,3256.3,3256.0,3.2078]
[1736485432607,0.30712,3256.3,3256.0,3.51494]
[1736485432805,0.4409,3256.4,3256.1,0.30713]
[1736485433403,0.74801,3256.4,3256.0,3.51494]
[1736485433607,0.74801,3256.4,3256.1,0.30713]
[1736485433908,0.4409,3256.4,3256.0,3.2078]
[1736485434096,0.4409,3256.4,3256.0,3.51494]
[1736485434501,0.74801,3256.4,3256.0,3.51494]
[1736485436209,0.4409,3256.4,3256.3,0.30711]
[1736485436411,0.77657,3256.8,3256.0,5.12156452]
[1736485436606,1.22307,3256.8,3256.5,0.30709]
[1736485436814,1.22307,3256.8,3256.6,0.9099]
[1736485437002,0.75357,3256.8,3256.6,0.9099]
[1736485437711,0.30708,3256.7,3256.6,0.9099]
[1736485440010,0.30709,3256.6,3256.3,0.30711]
[1736485440607,0.30709,3256.6,3256.1,0.8884]
[1736485440808,0.30709,3256.6,3256.3,0.30711]
[1736485441617,0.30708,3256.7,3256.4,0.3071]
[1736485441910,0.30708,3256.7,3256.3,0.30711]
[1736485442116,0.30709,3256.6,3256.3,0.30711]
[1736485442615,0.4745,3256.5,3256.3,0.30711]
[1736485443317,0.4745,3256.5,3256.1,0.8884]
[1736485443717,0.30711,3256.4,3256.1,0.8884]
[1736485443912,0.30711,3256.4,3256.1,1.19553]
[1736485444109,0.4745,3256.5,3256.1,0.8884]
[1736485444310,0.4745,3256.5,3256.4,0.30711]
[1736485447514,1.91376452,3256.9,3256.1,0.8884]
[1736485447821,2.22082452,3256.9,3256.6,0.30708]
[1736485448122,2.22083452,3256.9,3256.5,0.30709]
[1736485450018,0.4685,3257.0,3256.4,0.4621]
[1736485450216,0.4685,3257.0,3256.9,0.30706]
[1736485451617,0.4685,3257.0,3256.8,0.30706]
[1736485451817,0.4685,3257.0,3256.4,0.4621]
[1736485452318,0.77256,3256.9,3256.5,0.30709]
[1736485452722,0.77256,3256.9,3256.4,0.4621]
[1736485452916,0.77555,3257.0,3256.6,0.30708]
[1736485453222,0.77555,3257.0,3256.7,0.464]
[1736485453420,0.30706,3256.9,3256.7,0.464]
[1736485454019,0.4685,3257.0,3256.7,0.464]
[1736485454319,0.30708,3256.7,3256.4,0.7692]
[1736485454728,1.91376452,3256.9,3256.4,0.4621]
[1736485454921,0.30707,3256.8,3256.5,0.3071]
[1736485455624,2.22082452,3256.9,3256.5,0.3071]
[1736485456126,1.91376452,3256.9,3256.3,3.2078]
[1736485456328,0.30709,3256.6,3256.3,3.51491]
[1736485456521,0.3071,3256.5,3256.3,3.2078]
[1736485456819,0.4542,3256.5,3256.0,0.4512]
[1736485457018,0.4542,3256.5,3255.9,3.6714]
[1736485457019,5.12156452,3256.3,3255.9,3.2078]
[1736485457222,0.30714,3256.0,3255.9,3.2078]
[1736485457824,0.30714,3256.0,3255.7,0.30717]
[1736485458125,0.4367,3255.9,3255.6,1.68598]
[1736485458324,0.30718,3255.7,3255.3,3.515]
[1736485458524,0.30717,3255.8,3255.4,0.30719]
[1736485458920,0.30717,3255.8,3255.3,4.1407]
[1736485458921,0.4367,3255.9,3255.6,0.30718]
[1736485459621,0.4367,3255.9,3255.3,4.1407]
[1736485459622,0.4367,3255.9,3255.4,0.3072]
[1736485459928,0.4367,3255.9,3255.6,0.30717]
[1736485460127,0.4367,3255.9,3255.3,4.1407]
[1736485460324,3.2078,3256.3,3255.3,6.05446452]
[1736485460520,0.74753,3256.2,3255.8,0.30716]
[1736485460727,0.4404,3256.2,3255.7,3.2078]
[1736485461025,0.74753,3256.2,3255.8,0.74476]
[1736485461423,0.30714,3256.0,3255.9,0.4658]
[1736485461624,0.30716,3255.8,3255.4,1.21059]
[1736485461827,0.30718,3255.6,3255.4,0.4658]
[1736485462721,0.9096,3255.7,3255.4,0.4658]
[1736485462930,1.21678,3255.7,3255.4,0.4658]
[1736485463124,0.9096,3255.7,3255.4,0.4658]
[1736485463320,2.82336452,3255.7,3255.0,40.8]
[1736485463525,0.30722,3255.3,3255.0,41.2487]
[1736485463826,0.4505,3255.2,3255.0,41.2487]
[1736485464331,0.4505,3255.2,3255.0,41.55594]
[1736485466627,0.4505,3255.2,3255.0,41.2487]
[1736485466928,0.75772,3255.2,3255.0,41.2487]
[1736485467326,0.4505,3255.2,3255.0,41.2487]
[1736485468632,1.91376452,3255.1,3254.8,3.2078]
[1736485468831,2.83506452,3255.1,3254.5,3.2078]
[1736485469024,0.30724,3255.0,3254.6,0.30727]
[1736485469220,2.83506452,3255.1,3254.7,0.30726]
[1736485469221,0.4434,3255.1,3254.7,0.30726]
[1736485469631,0.4434,3255.1,3254.5,44.0078]
[1736485469632,0.75063,3255.1,3254.6,0.30727]
[1736485469832,0.75063,3255.1,3254.5,3.2078]
[1736485469833,0.30725,3254.9,3254.5,3.2078]
[1736485470031,0.30724,3255.0,3254.5,3.51508]
[1736485470431,2.35716452,3255.1,3254.5,0.30728]
[1736485470634,2.35716452,3255.1,3254.5,3.51508]
[1736485470828,0.30724,3255.0,3254.6,0.30727]
[1736485471535,2.66439452,3255.1,3254.6,0.30727]
[1736485471941,0.30724,3255.0,3254.6,0.30727]
[1736485473836,2.35716452,3255.1,3254.5,3.2078]
[1736485474033,2.66439452,3255.1,3254.7,0.30726]
[1736485476640,0.30724,3255.0,3254.6,0.30727]
[1736485477332,2.35716452,3255.1,3254.5,3.2078]
[1736485477539,2.66439452,3255.1,3254.7,0.30726]
[1736485479533,2.35716452,3255.1,3254.5,3.2078]
[1736485479940,0.30727,3254.7,3254.5,3.2078]
[1736485480135,0.4588,3254.6,3254.5,3.2078]
[1736485480540,0.4588,3254.6,3254.5,3.51508]
[1736485481343,0.4588,3254.6,3254.5,3.2078]
[1736485483043,0.4588,3254.6,3254.5,3.51508]
[1736485487255,0.4588,3254.6,3254.5,0.30728]
[1736485487552,0.4588,3254.6,3254.4,0.8909]
[1736485487747,1.91376452,3254.5,3254.3,3.2078]
[1736485488052,2.22105452,3254.5,3254.3,3.2078]
[1736485488251,2.68105452,3254.5,3254.3,3.2078]
[1736485488748,2.37376452,3254.5,3254.3,3.2078]
[1736485488953,0.46,3254.5,3254.3,3.2078]
[1736485490052,0.76608,3254.6,3254.3,3.2078]
[1736485490354,2.22105452,3254.4,3254.3,3.2078]
[1736485490552,1.91376452,3254.4,3254.1,0.8872]
[1736485490853,1.91376452,3254.4,3254.1,1.19452]
[1736485491249,0.30729,3254.5,3254.1,1.19452]
[1736485492153,0.4588,3254.6,3254.1,0.8872]
[1736485492854,0.4588,3254.6,3254.4,0.30729]
[1736485494452,0.4588,3254.6,3254.1,0.8872]
[1736485494755,0.4588,3254.6,3254.3,0.3073]
[1736485495254,0.76608,3254.6,3254.4,0.4679]
[1736485495956,0.30728,3254.5,3254.4,0.4679]
[1736485498456,0.76608,3254.6,3254.4,0.4679]
[1736485499053,0.30728,3254.5,3254.4,0.4679]
[1736485500360,0.30731,3254.3,3254.1,0.8872]
[1736485500560,0.4588,3254.6,3252.4,21.77170746]
[1736485500561,5.12156452,3254.4,3253.6,3.2078]
[1736485500760,1.91376452,3254.1,3253.6,3.2078]
[1736485501059,0.30736,3253.7,3253.6,3.2078]
[1736485501356,3.97605,3254.4,3253.2,0.3074]
[1736485501357,0.30738,3253.6,3253.2,0.3074]
[1736485501558,0.76798,3253.5,3253.1,1.4046]
[1736485501759,0.3074,3253.4,3253.1,1.4046]
[1736485502355,0.30739,3253.4,3253.1,1.4046]
[1736485502957,0.3074,3253.3,3253.1,1.4046]
[1736485503657,2.37436452,3253.5,3253.0,3.2078]
[1736485503859,1.91376452,3253.2,3252.6,3.2078]
[1736485504056,0.30745,3252.8,3252.6,3.2078]
[1736485504261,1.91376452,3252.9,3252.6,3.2078]
[1736485504462,0.30744,3252.9,3252.6,3.2078]
[1736485504858,0.4388,3253.1,3252.6,3.2078]
[1736485505065,0.30743,3253.0,3252.6,3.51526]
[1736485506062,0.30741,3253.2,3252.7,0.30745]
[1736485506257,0.30742,3253.1,3252.6,3.51526]
[1736485506760,0.30744,3252.9,3252.6,3.2078]
[1736485506962,1.91376452,3253.2,3252.6,3.2078]
[1736485507161,0.4487,3253.1,3252.6,3.2078]
[1736485507366,1.91376452,3252.9,3252.6,3.2078]
[1736485507565,0.30745,3252.7,3252.6,3.2078]
[1736485507768,0.4632,3252.8,3252.6,3.2078]
[1736485509064,0.4632,3252.8,3252.5,0.30747]
[1736485509272,0.30743,3253.0,3252.4,3.2078]
[1736485509569,0.30745,3252.8,3252.4,3.2078]
[1736485509773,2.36926452,3253.2,3252.5,0.30747]
[1736485509967,0.30744,3252.9,3252.5,0.30747]
[1736485510468,0.30744,3252.9,3252.4,3.51528]
[1736485510674,2.36926452,3253.2,3252.4,3.51528]
[1736485511062,0.30744,3252.9,3252.5,0.30747]
[1736485511661,0.30745,3252.8,3252.4,3.2078]
[1736485511863,0.30746,3252.7,3252.4,3.2078]
[1736485512371,1.91376452,3252.9,3252.4,3.2078]
[1736485512571,2.22120452,3252.9,3252.4,3.2078]
[1736485512866,2.22120452,3252.9,3252.5,0.30747]
[1736485513465,1.91376452,3252.9,3252.4,3.2078]
[1736485513765,0.30745,3252.8,3252.4,3.51528]
[1736485514467,0.30742,3253.1,3252.7,0.30745]
[1736485514673,0.30742,3253.1,3252.8,0.4403]
[1736485514874,0.30742,3253.1,3252.9,0.907]
[1736485515179,0.76291,3253.2,3252.9,0.907]
[1736485515571,0.4555,3253.2,3252.9,0.907]
[1736485515770,0.4555,3253.2,3252.9,1.21444]
[1736485517573,0.4555,3253.2,3252.9,0.907]
[1736485517776,0.76291,3253.2,3252.9,0.907]
[1736485518076,2.22119452,3253.0,3252.5,0.30747]
[1736485518283,0.30746,3252.7,3252.5,0.9213]
[1736485518572,0.30744,3252.9,3252.5,1.22877]
[1736485519177,0.8899,3253.1,3252.7,0.30745]
[1736485519178,0.30742,3253.1,3252.7,0.30745]
[1736485519574,0.4555,3253.2,3252.5,0.9213]
[1736485519780,0.30743,3253.1,3252.6,0.30746]
[1736485520982,0.30743,3253.0,3252.6,0.30746]
[1736485522179,0.4555,3253.2,3252.5,0.9213]
[1736485522378,0.76291,3253.2,3252.8,0.30744]
[1736485522575,0.30742,3253.1,3252.8,0.30744]
[1736485522878,0.4555,3253.2,3252.9,0.4782]
[1736485523078,0.76292,3253.2,3253.0,0.9459]
[1736485523279,0.4555,3253.2,3253.0,0.9459]
[1736485523577,0.30742,3253.1,3253.0,0.9459]
[1736485524878,0.76291,3253.2,3253.0,0.9459]
[1736485525274,0.76291,3253.2,3252.9,0.30743]
[1736485525580,0.30742,3253.1,3252.8,3.51524]
[1736485525770,0.76291,3253.2,3252.9,0.30744]
[1736485525972,0.76291,3253.2,3253.0,0.8931]
[1736485526274,0.4555,3253.2,3253.0,0.8931]
[1736485526474,0.30742,3253.1,3253.0,0.8931]
[1736485527578,0.4555,3253.2,3252.8,3.2078]
[1736485527775,0.30743,3253.0,3252.8,3.2078]
[1736485529484,0.30742,3253.1,3252.8,3.51524]
[1736485529884,0.76291,3253.2,3252.9,0.30743]
[1736485530387,0.76291,3253.2,3253.0,0.458]
[1736485530685,0.76291,3253.2,3253.1,0.4777]
[1736485531179,0.76291,3253.2,3253.1,0.9184]
[1736485531882,0.30741,3253.2,3253.1,0.9184]
[1736485536182,0.4639,3253.4,3253.1,0.9184]
[1736485536388,0.4639,3253.4,3253.3,0.3074]
[1736485536589,0.30738,3253.6,3253.3,0.3074]
[1736485537292,3.6684,3253.7,3253.1,0.9184]
[1736485537591,0.30733,3254.1,3253.6,3.2078]
[1736485537779,0.30733,3254.1,3253.7,1.66856]
[1736485537979,0.4606,3254.3,3253.7,1.3612]
[1736485538183,0.4606,3254.3,3254.0,3.2078]
[1736485538383,0.76791,3254.3,3254.0,3.2078]
[1736485539884,0.30732,3254.2,3254.0,3.2078]
[1736485540189,0.30731,3254.2,3254.0,3.2078]
[1736485540780,0.4606,3254.3,3254.0,3.2078]
[1736485541086,0.30733,3254.1,3254.0,3.2078]
[1736485541284,2.22109452,3254.1,3254.0,3.2078]
[1736485542181,1.91376452,3254.1,3254.0,3.2078]
[1736485543690,0.4606,3254.3,3254.0,3.2078]
[1736485544192,0.76791,3254.3,3254.0,3.2078]
[1736485545294,0.4606,3254.3,3254.0,3.51513]
[1736485545595,1.91376452,3254.4,3254.1,0.30732]
[1736485545795,1.91376452,3254.4,3254.0,3.2078]
[1736485545796,2.22106452,3254.4,3254.0,3.51513]
[1736485545996,0.3073,3254.4,3254.0,3.51513]
[1736485546488,0.3073,3254.4,3254.0,3.2078]
[1736485547297,0.4784,3254.6,3254.0,3.2078]
[1736485547599,0.30729,3254.5,3254.1,0.30732]
[1736485547801,0.30729,3254.5,3254.2,0.9097]
[1736485547987,0.30729,3254.5,3254.2,1.3637]
[1736485548187,0.4784,3254.6,3254.2,1.3637]
[1736485548491,0.4784,3254.6,3254.4,0.30729]
[1736485549096,0.4784,3254.6,3254.3,0.3073]
[1736485551087,0.4784,3254.6,3254.4,0.30729]
[1736485551297,1.91376452,3254.7,3254.4,0.30729]
[1736485551498,0.30726,3254.8,3254.4,0.30729]
[1736485551689,0.30726,3254.8,3254.4,3.51509]
[1736485552791,2.36876452,3255.0,3254.4,3.51509]
[1736485552993,0.30727,3254.7,3254.4,3.2078]
[1736485553301,0.30726,3254.8,3254.4,44.31509]
[1736485554002,2.36876452,3255.0,3254.4,3.2078]
[1736485554492,2.67600452,3255.0,3254.4,3.2078]
[1736485554689,2.67600452,3255.0,3254.6,0.30727]
[1736485554895,2.67600452,3255.0,3254.7,0.9045]
[1736485555094,2.67600452,3255.0,3254.7,1.349]
[1736485555694,0.30725,3254.9,3254.7,1.349]
[1736485558497,2.67601452,3255.0,3254.7,1.349]
[1736485558698,0.30725,3254.9,3254.7,1.349]
[1736485562599,3.2078,3255.6,3254.8,3.2078]
[1736485562905,3.2078,3255.6,3254.7,1.349]
[1736485562906,0.4432,3255.4,3255.3,0.30721]
[1736485563203,0.4432,3255.4,3255.3,1.24041]
[1736485563402,0.4432,3255.4,3255.3,1.70441]
[1736485563697,0.4432,3255.4,3255.3,1.3972]
[1736485564707,0.4432,3255.4,3255.2,3.2078]
[1736485565702,0.4432,3255.4,3255.2,3.51502]
[1736485565897,0.4432,3255.4,3255.2,3.2078]
[1736485566099,0.4432,3255.4,3255.2,3.51501]
[1736485566296,0.4432,3255.4,3255.3,0.436]
[1736485566497,0.4432,3255.4,3255.3,0.9112]
[1736485566697,0.4432,3255.4,3255.3,1.68591]
[1736485567200,0.4432,3255.4,3255.3,1.3787]
[1736485568105,0.4432,3255.4,3254.9,0.30724]
[1736485568297,0.30722,3255.2,3254.9,0.30724]
[1736485568499,0.4432,3255.4,3255.2,0.30722]
[1736485568801,0.4432,3255.4,3254.9,0.4675]
[1736485568802,0.4432,3255.4,3255.3,1.21661]
[1736485568999,0.4432,3255.4,3255.3,0.9094]
[1736485569193,0.7504,3255.4,3255.3,0.9094]
[1736485569406,0.4432,3255.4,3255.3,0.9094]
[1736485569598,0.7504,3255.4,3255.3,0.9094]
[1736485569793,0.4432,3255.4,3255.3,0.9094]
[1736485570807,0.4432,3255.4,3255.0,0.30723]
[1736485571014,0.30722,3255.3,3255.0,0.74553]
[1736485572600,0.30722,3255.3,3255.0,0.4383]
[1736485573600,0.7504,3255.4,3255.1,0.30723]
[1736485573805,0.30721,3255.3,3255.0,0.74554]
[1736485574402,0.4432,3255.4,3255.0,0.74554]
[1736485574704,0.7504,3255.4,3255.1,0.30723]
[1736485574899,0.4432,3255.4,3255.0,0.4383]
[1736485575108,3.51499,3255.6,3255.1,0.30723]
[1736485575306,3.51499,3255.6,3255.2,0.30721]
[1736485576697,0.30719,3255.6,3255.2,0.30721]
[1736485576902,3.6571,3255.7,3255.0,0.4383]
[1736485577100,0.3072,3255.5,3255.1,0.30723]
[1736485577308,0.30719,3255.5,3255.1,0.30723]
[1736485579211,0.30721,3255.4,3255.1,0.30723]
[1736485579407,0.9229,3255.6,3255.1,0.30723]
[1736485579722,0.30719,3255.5,3255.1,0.30723]
[1736485580510,0.30719,3255.5,3255.2,0.30722]
[1736485580904,0.30719,3255.5,3255.1,0.30723]
[1736485581107,0.3072,3255.4,3255.1,0.30723]
[1736485581305,0.3072,3255.5,3255.1,0.30723]
[1736485581501,0.30719,3255.5,3255.1,0.30723]
[1736485582609,0.9229,3255.6,3255.0,0.4383]
[1736485582807,0.30721,3255.3,3255.0,0.4383]
[1736485583212,0.446,3255.2,3255.0,0.74554]
[1736485585414,0.446,3255.2,3255.1,0.30723]
[1736485585613,0.3072,3255.5,3255.1,0.30723]
[1736485585814,0.741,3255.5,3255.1,0.30723]
[1736485586009,3.2078,3255.7,3255.4,0.30719]
[1736485586209,3.2078,3255.7,3255.5,1.3892]
[1736485586407,0.4338,3255.9,3255.6,40.8]
[1736485586609,0.4338,3255.9,3255.8,0.30716]
[1736485586813,3.2078,3256.6,3255.9,0.30715]
[1736485587114,3.2078,3256.6,3255.7,3.2078]
[1736485587115,2.22087452,3256.4,3256.0,1.3892]
[1736485587315,0.30712,3256.3,3256.0,1.3892]
[1736485587616,0.30714,3256.2,3256.0,1.3892]
[1736485587818,0.435,3256.3,3256.0,1.3892]
[1736485588117,1.91376452,3256.1,3255.6,40.8]
[1736485588306,1.91376452,3256.1,3255.6,41.10719]
[1736485588307,0.30715,3256.0,3255.6,41.10719]
[1736485588617,0.30716,3255.9,3255.5,0.30719]
[1736485588816,0.30718,3255.7,3255.3,4.87311]
[1736485589012,0.3072,3255.4,3255.3,3.2078]
[1736485589517,0.7678,3255.4,3255.3,3.2078]
[1736485591918,0.7678,3255.4,3255.1,0.30723]
[1736485592112,0.7678,3255.4,3255.1,3.51503]
[1736485593722,0.7678,3255.4,3255.1,0.30723]
[1736485593912,0.4606,3255.4,3255.1,3.2078]
[1736485594117,0.30721,3255.3,3255.1,3.2078]
[1736485596320,0.76781,3255.4,3255.1,3.2078]
[1736485596715,0.30722,3255.3,3255.1,3.2078]
[1736485599121,0.4606,3255.4,3255.0,0.4394]
[1736485599323,1.91376452,3255.2,3254.6,0.30727]
[1736485599525,0.30725,3254.9,3254.6,0.30727]
[1736485600023,0.4775,3254.8,3254.6,0.30727]
[1736485600226,0.4775,3254.8,3254.5,0.30728]
[1736485600428,0.4775,3254.8,3254.7,0.30727]
[1736485600620,0.30723,3255.1,3254.7,0.30727]
[1736485600821,0.30725,3255.0,3254.6,0.30727]
[1736485602536,0.4775,3255.1,3254.4,1.423]
[1736485602732,0.4775,3255.1,3254.8,0.30725]
[1736485602929,0.4775,3255.1,3254.9,1.65505]
[1736485604437,0.3072,3255.4,3255.0,0.30724]
[1736485604639,0.3072,3255.4,3255.1,0.30722]
[1736485604836,0.3072,3255.4,3254.9,1.3478]
[1736485605137,0.4741,3255.5,3255.3,0.30721]
[1736485605337,1.91376452,3255.8,3255.4,1.3351]
[1736485605638,0.30718,3255.7,3255.4,42.4423]
[1736485605939,0.30718,3255.7,3255.4,1.3351]
[1736485606141,0.30719,3255.6,3255.4,1.3351]
[1736485606440,0.30719,3255.5,3255.4,1.3351]
[1736485606940,0.30719,3255.6,3255.4,1.3351]
[1736485608240,0.30722,3255.3,3255.1,3.2078]
[1736485608432,2.22098452,3255.2,3255.1,3.2078]
[1736485608635,2.68998452,3255.2,3255.1,3.2078]
[1736485610642,0.77622,3255.2,3255.1,3.2078]
[1736485611142,0.77622,3255.2,3254.9,3.51505]
[1736485611645,2.38276452,3255.2,3254.7,1.4217]
[1736485611833,0.30725,3254.9,3254.7,1.4217]
[1736485612446,0.4418,3254.8,3254.7,1.4217]